Cogmind - Beta 14 @@@ ROGUE MODE // 2024.09.09 @ 00:21:28 Player: Awoo-Bot Result: Destroyed by IJ-EJJ(R) with Subdweller Laser Performance ------------- Evolutions (0) 0 Regions Visited (2) 400 Robots Destroyed (28) 140 Value Destroyed (581) 581 Prototype IDs (0) 0 Alien Tech Used (0) 0 Bonus (0) 0 TOTAL SCORE: 1121 Bonus ------- None Cogmind --------- Core Integrity 0/250 Matter 294/300 Energy 235/250 System Corruption 2% Temperature Cool (6) Movement Treading (240) Ox1 Location -10/Subcaves Parts ------- > --- POWER (1) -------- Ion Engine > --- PROPULSION (2) --- Light Treads > --- UTILITY (2) ------ Large Storage Unit Seismic Detector (fused) > --- WEAPON (2) ------- Heavy EM Pulse Gun > --- INVENTORY (15) --- Large Storage Unit Large Matter Pod (150) Improved Terrain Scanner Medium Laser Assault Rifle Light Assault Rifle EMP Blaster Grenade Launcher Peak State ------------ > --- POWER ------------ Ion Engine > --- PROPULSION ------- Light Treads Light Treads > --- UTILITY ---------- Large Storage Unit Seismic Detector > --- WEAPON ----------- Heavy EM Pulse Gun Heavy EM Pulse Gun > --- INVENTORY -------- Large Storage Unit Large Matter Pod Improved Terrain Scanner Medium Laser Assault Rifle Light Assault Rifle EMP Blaster Grenade Launcher [Rating: 10] Favorites ----------- Power Ion Engine Engine Ion Engine Propulsion Light Treads Treads Light Treads Wheel Wheel Utility Seismic Detector Device Seismic Detector Storage Large Storage Unit Weapon Assault Rifle Energy Gun Heavy EM Pulse Gun Ballistic Gun Assault Rifle Launcher Grenade Launcher Build | -11 -10 -10 ------- Run | Yrd Mat Sub Slots Evolved . | . . . Power . | . . . Propulsion . | . . . Utility . | . . . Weapon . | . . . Parts Attached 25 | 9 10 6 Power 2 | 1 . 1 Engine 2 | 1 . 1 Core . | . . . Reactor . | . . . Propulsion 5 | 2 3 . Treads 2 | 1 1 . Leg . | . . . Wheel 3 | 1 2 . Hover . | . . . Flight . | . . . Utility 6 | 3 3 . Device 2 | 1 1 . Storage 4 | 2 2 . Processor . | . . . Hackware . | . . . Protection . | . . . Artifact . | . . . Weapon 12 | 3 4 5 Energy Gun 3 | 1 . 2 Energy Cannon . | . . . Ballistic Gun 7 | 2 3 2 Ballistic Cannon . | . . . Launcher 2 | . 1 1 Special Weapon . | . . . Impact Weapon . | . . . Slashing Weapon . | . . . Piercing Weapon . | . . . Special Melee Weapon . | . . . Unidentified Prototypes . | . . . Parts Lost 6 | . 2 4 Power 1 | . . 1 Propulsion 3 | . 2 1 Utility . | . . . Weapon 2 | . . 2 Highest Loss Streak 2 | . 1 2 To Critical Strikes . | . . . Average Slot Usage (%) 95 | . 99 81 Engine 13 | . 14 13 Treads 17 | . 16 19 Wheel 8 | . 11 . Device 14 | . 14 14 Storage 14 | . 14 14 Energy Gun 6 | . 3 15 Ballistic Gun 18 | . 23 2 Peak Build Rating 10 | 7 8 10 Average Rating 7 | 6 7 7 On Entrance 5 | . 7 8 Naked Turns . | . . . Heaviest Build 32 | 19 30 32 Greatest Support 40 | 10 40 40 Greatest Overweight (x) 2 | 1 2 1 Average Overweight (x) . | . 1 . Largest Inventory Capacity 15 | 8 15 15 Average Capacity 12 | 7 11 15 Most Carried 12 | 6 12 10 Average Carried 8 | 3 8 8 Final Capacity 15 | 8 15 15 Final Carried 10 | 6 10 8 Class Distribution -------------------- 100% | Mutant Dominant Class ---------------- Mutant | -10/Materials Mutant | -10/Subcaves Resources | -11 -10 -10 ----------- Run | Yrd Mat Sub Matter Collected 1049 | 371 514 164 Remotely . | . . . Salvage Created 667 | 131 352 184 Parts 50 | 13 22 15 Haulers Intercepted . | . . . Recyclers Shooed . | . . . Parts Field Recycled . | . . . Retrieved Matter . | . . . Parts Self-Destructed 7 | . . 7 Prevented . | . . . Kills | -11 -10 -10 ------- Run | Yrd Mat Sub Combat Hostiles Destroyed 20 | . 12 8 Guns 16 | . 12 4 AOE 4 | . . 4 Classes Destroyed 8 | 3 3 2 Worker 1 | 1 . . Tunneler 3 | 3 . . Recycler 1 | 1 . . Turret 2 | . . 2 Watcher 1 | . 1 . Swarmer 10 | . 6 4 Grunt 6 | . 6 . Subdweller 4 | . . 4 Best Kill Streak 6 | 4 5 6 Combat Bots Only 5 | . 5 4 Max Kills in Single Turn 1 | 1 1 1 Gunslinging . | . . . Exploded 1 | . . 1 Melee . | . . . Uniques/NPCs Destroyed . | . . . Combat | -11 -10 -10 -------- Run | Yrd Mat Sub Hostile Shots Fired 165 | . 59 106 Missed 65 | . 14 51 Damage Taken 1062 | . 464 598 Core 266 | . 87 179 Absorbed by Shields . | . . . Regen/Repaired (Parts) 79 | . 79 . Core Remaining (%) 100 | 100 . . Volleys Fired 90 | 14 49 27 Largest 2 | 2 2 2 Hottest 90 | 70 70 90 Shots Fired 165 | 28 97 40 Gun 155 | 28 97 30 Cannon . | . . . Launcher 10 | . . 10 Special . | . . . Kinetic 100 | 14 86 . Thermal 25 | 14 11 . Explosive 10 | . . 10 Electromagnetic 30 | . . 30 Robot Hit Streak 11 | 5 11 6 Robot Miss Streak 5 | 2 5 3 Penetration Max . | . . . Secondary Targets 1 | . 1 . Max Gunslinging Chain 1 | . 1 . Shots Hit Robots 95 | 15 58 22 Core Hits 49 | 6 22 21 Critical Kills . | . . . Critical Parts Destroyed 1 | . 1 . Critical Strikes 1 | . 1 . Destroy 1 | . 1 . Melee Attacks . | . . . Impact . | . . . Slashing . | . . . Piercing . | . . . Sneak Attacks . | . . . Combat Hostiles . | . . . Follow-up Attacks . | . . . Damage Inflicted 1804 | 184 707 913 Guns 1172 | 184 707 281 Cannons . | . . . Explosions 632 | . . 632 Melee . | . . . Ramming . | . . . Kinetic 706 | 74 632 . Thermal 185 | 110 75 . Explosive 632 | . . 632 Electromagnetic 281 | . . 281 Impact . | . . . Slashing . | . . . Piercing . | . . . Highest Corruption 2 | . 2 2 Average Corruption 2 | . 2 2 Corruption Purged . | . . . Corruption Blocked . | . . . Effects 11 | . 3 8 Message Errors 3 | . 2 1 Matter Fused 1 | . . 1 Heat Flow Errors 2 | . 1 1 Energy Discharges 1 | . . 1 Parts Fused 1 | . . 1 Data Loss (minor) 2 | . . 2 Misfires 1 | . . 1 Overload Shots . | . . . Overflow Damage 32 | . . 32 Projectiles . | . . . Explosions 32 | . . 32 Melee . | . . . Knockbacks . | . . . Impact . | . . . Kinetic . | . . . Secondary . | . . . Self-Inflicted Damage . | . . . Shots . | . . . Rammed . | . . . Targets Rammed . | . . . Kicked . | . . . Crushed . | . . . Highest Temperature 219 | 72 219 137 Average Temperature 38 | 25 46 78 Received Heat Transfer 375 | . 171 204 Siege Activations . | . . . Robots Corrupted . | . . . Combat Hostiles . | . . . Parts Fried 3 | . . 3 Impact Corruptions . | . . . Robots Melted . | . . . Combat Hostiles . | . . . Parts Melted 1 | 1 . . Heat Transferred 555 | 333 222 . Parts Sabotaged . | . . . Parts Stolen . | . . . Parts Stripped . | . . . Power Chain Reactions . | . . . Alert | -11 -10 -10 ------- Run | Yrd Mat Sub Peak Influence 170 | 25 170 . Initial 16 | . 16 . Average 35 | 10 37 . Maximum Alert Level . | . . . Low Security (%) 100 | 100 100 . Level 1 . | . . . Level 2 . | . . . Level 3 . | . . . Level 4 . | . . . Level 5 . | . . . High Security . | . . . Max Security . | . . . Squads Dispatched 2 | . 2 . Investigation 1 | . 1 . Extermination . | . . . Reinforcement 1 | . 1 . Assault . | . . . Garrison . | . . . Intercept . | . . . Searches Triggered . | . . . Construction Impeded . | . . . Haulers Reinforced . | . . . Active Scanning Responses . | . . . Cargo Convoy Interrupts . | . . . Stealth | -11 -10 -10 --------- Run | Yrd Mat Sub Distress Signals . | . . . Communications Jammed . | . . . Distress Signals . | . . . Times Spotted 36 | . 24 12 Peak Tracking Total 6 | . 4 6 Tactical Retreats 3 | . 2 1 Traps | -11 -10 -10 ------- Run | Yrd Mat Sub Traps Triggered 2 | . 2 . Indirectly . | . . . Trap Hack Attempts . | . . . Triggered . | . . . Disarmed . | . . . Reprogrammed . | . . . Reused . | . . . Traps Extracted . | . . . Installed . | . . . Triggered . | . . . Machines | -11 -10 -10 ---------- Run | Yrd Mat Sub Machines Disabled 4 | . . 4 Max in Single Turn 1 | . . 1 Machines Repaired . | . . . Machines Dismantled . | . . . Machines Sabotaged . | . . . Overloaded Fab Kills . | . . . Hacking | -11 -10 -10 --------- Run | Yrd Mat Sub Machines Accessed 8 | . 8 . Terminals 7 | . 7 . Fabricators . | . . . Repair Stations 1 | . 1 . Recycling Units . | . . . Scanalyzers . | . . . Garrison Access . | . . . Total Hacks 20 | . 20 . Successful 16 | . 16 . Failed 4 | . 4 . Catastrophic . | . . . Database Lockouts . | . . . Manual 17 | . 17 . Terminals 17 | . 17 . Fabricators . | . . . Repair Stations 3 | . 3 . Recycling Units . | . . . Scanalyzers . | . . . Garrison Access . | . . . Terminal Hacks 2 | . 2 . Unreport Threat 2 | . 2 . Fabricator Hacks . | . . . Repair Station Hacks 2 | . 2 . Scan Component 1 | . 1 . Repair 1 | . 1 . Recycling Unit Hacks . | . . . Scanalyzer . | . . . Garrison Access Hacks . | . . . Unauthorized Hacks 12 | . 12 . Terminals 12 | . 12 . Botnet 6 | . 6 . Skim 6 | . 6 . Fabricators . | . . . Repair Stations . | . . . Recycling Units . | . . . Scanalyzers . | . . . Garrison Access . | . . . Data Cores Recovered . | . . . Used . | . . . Hacking Detections 5 | . 5 . Full Trace Events 1 | . 1 . Feedback Events . | . . . Feedback Blocked . | . . . Robot Schematics Acquired . | . . . Robots Built . | . . . Authchips . | . . . Time . | . . . Total Robot Build Rating . | . . . Part Schematics Acquired . | . . . Parts Built . | . . . Authchips . | . . . Time . | . . . Total Part Build Rating . | . . . Parts Repaired 1 | . 1 . Time 26 | . 26 . Parts Recycled . | . . . Recycled Matter . | . . . Retrieved Matter . | . . . Retrieved Components . | . . . Parts Scanalyzed . | . . . Part Schematics Acquired . | . . . Parts Damaged . | . . . Bothacking | -11 -10 -10 ------------ Run | Yrd Mat Sub Used RIF Installer . | . . . Robots Hacked . | . . . Non-combat . | . . . Combat . | . . . Robot Hacks Applied . | . . . Relay Couplers Released . | . . . Fabnet Peak Effective % . | . . . Robots Rewired . | . . . Allies Hacked . | . . . Hacks Repelled . | . . . Allies | -11 -10 -10 -------- Run | Yrd Mat Sub Total Allies . | . . . Largest Group . | . . . Highest-Rated Group . | . . . Highest-Rated Ally . | . . . Total Orders . | . . . Ally Attacks . | . . . Total Damage . | . . . Kills . | . . . Allies Corrupted . | . . . Allies Melted . | . . . Intel | -11 -10 -10 ------- Run | Yrd Mat Sub Robot Analysis Total . | . . . Derelict Logs Recovered . | . . . Drone Launches . | . . . Drone Recoveries . | . . . Exploration | -11 -10 -10 ------------- Run | Yrd Mat Sub Turns Passed 1739 | 123 1226 390 Spaces Moved 982 | 67 764 151 Core 3 | 3 . . Treads 293 | . 142 151 Legs . | . . . Wheels 686 | 64 622 . Hover . | . . . Flight . | . . . Fastest Speed 50 | 50 95 160 Average Speed 128 | 90 115 209 Slowest Speed 240 | 95 160 240 Overloaded Moves . | . . . Propulsion Burnouts . | . . . Robots Hopped . | . . . Cave-ins Triggered . | . . . Exploration Rate (%) 37 | 4 97 10 Regions Visited 2 Branch Regions 1 Pre-discovered Areas 1 | . 1 . Known Exits Taken 1 | . 1 . Unknown Exits Taken 1 | 1 . . Scrap Searched . | . . . Spaces Dug . | . . . Terrain Destroyed 17 | . . 17 Melee . | . . . Projectile . | . . . AOE 17 | . . 17 Terrain Rammed . | . . . Walls Destroyed . | . . . Machines Disabled . | . . . Actions | -11 -10 -10 --------- Run | Yrd Mat Sub Total 1291 | 97 1010 184 Wait 174 | . 174 . Move 980 | 66 763 151 Hop . | . . . Pick Up 15 | 7 8 . Fast Attach 8 | 7 1 . Attach 4 | . 2 2 Detach . | . . . Swap 13 | 2 7 4 Drop 7 | 1 6 . Fire 90 | 14 49 27 Melee . | . . . Ram . | . . . Kick . | . . . Crush . | . . . Escape Stasis . | . . . Rewire . | . . . Trap . | . . . Miscellaneous . | . . . Route ------- -11/Scrapyard -10/Materials (discovered 5 exits: *Mat x3 / [*Min] / *Sub) -10/Subcaves (discovered 3 exits: *Mat x2 / [*Rec]) History --------- Turn | Location | Event 39 | -11/Scrapyard | Discovered new exit (range 14) 124 | -11/Scrapyard | Entered Materials 315 | -10/Materials | Build established: Mutant 519 | -10/Materials | Discovered new exit (range 11) 670 | -10/Materials | Discovered new exit (range 11) 811 | -10/Materials | Repaired Assault Rifle 825 | -10/Materials | Discovered new exit (range 16) 924 | -10/Materials | Discovered new exit (range 9) 1209 | -10/Materials | Identified exit to Materials 1250 | -10/Materials | Learned location of 1 exit from Recycling 1283 | -10/Materials | Learned location of 1 exit from Recycling 1306 | -10/Materials | Learned 2 Materials zone layouts 1320 | -10/Materials | Learned location of Mines (-8) 1325 | -10/Materials | Learned 4 Recycling zone layouts 1327 | -10/Materials | Identified exit to Subcaves 1350 | -10/Materials | Entered Subcaves 1350 | -10/Subcaves | Discovered new exit (range 9) 1350 | -10/Subcaves | Discovered new exit (range 13) 1351 | -10/Subcaves | Identified exit to Materials 1362 | -10/Subcaves | Core integrity fell below 50% 1413 | -10/Subcaves | Ambushed by Subdweller buried in earth 1484 | -10/Subcaves | Core integrity fell below 20% 1562 | -10/Subcaves | A swath of the cavern ceiling suddenly collapsed 1740 | -10/Subcaves | Destroyed by IJ-EJJ(R) with Subdweller Laser Last Messages --------------- 01492_ XH-JTM(R) destroyed. 01502_ Lgt. Treads destroyed. 01505_ EX-WO2(R) affixes Scrap Shield Fragment to Scrap Shield. 01506_ Hvy. EM Pulse Gun destroyed. 01510_ EX-WO2(R) destroyed. 01512_ Acquired 45 matter. 01514_ Acquired 60 matter. 01529_ Acquired 10 matter. 01531_ Acquired 9 matter. 01540_ M4BW#B3VO&:NPPE 58LBA Map ----- +----------------------------------------------------+ | ?????????????#" !=!" # # #???????????????????? | | ?????????????#" ## #????????????????????? | | ?????????????#" # ###??????????????????? | | ?????????????### < #??????????????????? | | ??????????????#" ##??????????????????? | | ??????????????#"" "# ### ##??????????????????? | | ??????????????#" "##?## #??????????????????? | | ??????????????#"" "#???# #??????????????????? | | ????????????####" ]""#???# #??????????????????? | | ????????????# # * &##???# ##??????????????????? | | ????????????# ! #????# #???????????????????? | | ????????????## #????# #???????????????????? | | ????????????## &##??? #???????????????????? | | ???????????## #### ## ##??????????????????? | | ???????????# #??????????????????? | | ???????????# #???????????????????? | | ???????????## "" #####????????????????? | | ????????????#" "" #### ##???????????????? | | ????????????#" ##?# ##??????????????? | | ????????????#"" "# ### #??????????????? | | ????????????##" """## #??????????????? | | ?????????????#" ###### #??????????????? | | ????????????# ?????## #??????????????? | | ??????????? ??????##R ### ##??????????????? | | ????????? ?????### ##???????????????????? | | ????????? #### ????## @ ##????????????????????? | | ????????? ????## ????# ###???###??????????????? | | ???????????????# ???## ### #### ##?????????????? | | ????????????????????# ### #?????????????? | | ????????????????????# #?????????????? | | ????????????????????# =[ #???????????????? | | ???????????????????## ! & ##??????????????? | | ??????????????????## [ & #??????????????? | | ?????????????????## ## ###??????????????? | | ?????????????????# #### ###????????????????? | | ????????????????### ##??# #??????????????????? | | ????????????????# #?## #??????????????????? | | ???????????????## [ ##?# ##??????????????????? | | ???????????????# #??# #??????????????????? | | ???????????????## #####?## #??????????????????? | | ???????????????## # #### ##?????????????????? | | ???????????????# ""## ## #?????????????????? | | ???????????????#####"# ## #?????????????????? | | ????????????????# #"## ## ###?????????????????? | | ????????????????###""# #"" #???????????????????? | | ??????????????????####""#"# ###?????????????????? | | ???????????????????# ###### ##????????????????? | | ??????????????????? #????## ###??????????????? | | ??